[Event "OBEM 2019"]
[Site "Bremen"]
[Date "2019.04.19"]
[Round "8.3"]
[White "Stieglitz, Dirk"]
[Black "Erofeev, Anastasia"]
[Result "1/2-1/2"]
[ECO "D00"]
[WhiteElo "2076"]
[BlackElo "1975"]
[Annotator "NA RC"]
[PlyCount "77"]
[EventDate "2019.04.13"]
[EventType "swiss"]
[EventCountry "GER"]
[SourceTitle "playchess.com"]
[Source "ChessBase"]
[SourceQuality "1"]
[TimeControl "40/5400+30:1800+30"]

{[%evp 13,77,10,0,13,28,0,32767,32767,32767,32767,48,33,54,36,46,32767,38,32,47,29,60,12,55,32767,32767,32767,32767,32767,32767,32767,127,93,105,-111,58,32767,-161,-345,0,32767,32767,32767,32767,32767,32767,0,0,0,30,32767,35,0,0,0,522,0,0,0,0,0,0,0,0,0,0,0]} 1. d4 {[%emt 0:00:00]} d5 {[%emt 0:00:00]} 2. Bf4 {[%emt 0:00:14]} Nf6 {[%emt 0:00:34]} 3. e3 {[%emt 0:02:41]} e6 {[%emt 0:01:37]} 4. Bd3 {[%emt 0:00:39]} Bd6 {[%emt 0:04:26]} 5. c3 {[%emt 0:01:03]} (5. Bg3 O-O 6. Nd2 c5 7. c3 Qc7 8. Ngf3 Nbd7 9. Qc2 e5 10. dxe5 Nxe5 11. Nxe5 Bxe5 12. Nf3 Bxg3 13. hxg3 h6 14. c4 Be6 15. O-O Rfd8 16. Rac1 Rac8 17. cxd5 Nxd5 {½-½ (36) Vachier Lagrave,M (2779)-Dominguez Perez,L (2739) chess.com INT 2018}) 5... Bxf4 {[%emt 0:03:27]} 6. exf4 {[%emt 0:00:09] D00: 1 d4 d5: Unusual lines} c5 {[%emt 0:00:39]} 7. Nf3 {[%emt 0:05:09]} cxd4 {[%emt 0:02:39]} 8. Nxd4 {[%emt 0:01:04]} Nc6 {[%emt 0:01:05]} 9. Nd2 {[%emt 0:03:51]} O-O {[%emt 0:11:25]} 10. N2f3 {[%emt 0:01:18]} Qc7 {[%emt 0:01:28]} 11. g3 {[%emt 0:12:49]} Bd7 $146 {[%emt 0:10:30]} ({Predecessor:} 11... Re8 12. Nxc6 bxc6 13. O-O Qb6 14. Qe2 a5 15. b3 Ba6 16. Ne5 Bxd3 17. Qxd3 {½-½ (17) Klein,L (1942)-Boes,J (1795) Stein am Rhein 2014}) 12. O-O {[%emt 0:01:42]} Rfe8 {[%emt 0:02:37]} 13. Re1 {[%emt 0:08:02]} Rac8 {[%emt 0:01:34]} 14. Nb5 {[%emt 0:09:41]} Qb8 {[%emt 0:00:24]} 15. Ne5 {[%emt 0:00:50]} a6 {[%emt 0:01:45]} 16. Nd4 {[%emt 0:01:12]} g6 {[%emt 0:07:22]} 17. g4 {[%emt 0:04:09]} Qd6 {[%emt 0:00:46]} 18. Re3 {[%emt 0:08:05]} Nxd4 {[%emt 0:02:28]} 19. cxd4 {[%emt 0:00:21]} Rc7 {[%emt 0:01:38]} 20. Rh3 {[%emt 0:06:53]} Qb4 {[%emt 0:03:33]} 21. g5 {[%emt 0:01:48]} Ne4 {[%emt 0:04:15]} 22. Bxe4 $1 {[%emt 0:06:07]} dxe4 {[%emt 0:00:09]} 23. Qg4 $2 {[%emt 0:03:04]} (23. Ng4 $16 {keeps the pressure on.}) 23... e3 $2 {[%emt 0:08:31]} ({Don't blunder} 23... Qxd4 $2 24. Rd1 $18) (23... Qxb2 $17 24. Re1 Qd2) 24. fxe3 {[%emt 0:02:48]} Qxb2 {[%emt 0:00:32]} 25. Rf1 $2 {[%emt 0:01:24]} (25. Qd1) 25... Rc1 $2 {[%emt 0:00:33]} ({Better is} 25... Bb5 $19 26. Re1 Rc1) 26. Nxd7 {[%emt 0:10:53]} Rxf1+ {[%emt 0:00:23]} 27. Kxf1 {[%emt 0:00:02]} Qb5+ {[%emt 0:00:50]} 28. Kg2 {[%emt 0:01:14]} Qxd7 {[%emt 0:00:48]} 29. Qh4 $1 {[%emt 0:00:16]} f5 {[%emt 0:10:28]} 30. gxf6 {[%emt 0:00:27]} Rf8 {[%emt 0:03:05]} 31. Qg5 {[%emt 0:03:01]} Qc6+ {[%emt 0:02:45]} 32. Kf2 {[%emt 0:00:40]} Qc2+ {[%emt 0:01:06]} 33. Kg3 {[%emt 0:00:56]} Qxa2 $2 {[%emt 0:02:42] [#]} (33... Qf5 $1 $11) 34. Rh6 $2 {[%emt 0:01:35]} (34. Qe5 $1 $18 {[%cal Re5c7]} h5 {[#]} 35. Rxh5 $1 {[%mdl 512]} Rxf6 36. Rh3 (36. Qxf6 gxh5 37. Qg5+ Kf8 $16)) 34... Qb1 $1 {[%emt 0:00:45]} 35. Qe5 {[%emt 0:00:37]} Qg1+ {[%emt 0:02:06]} 36. Kh3 {[%emt 0:00:02]} Qf1+ {[%emt 0:00:36]} 37. Kg3 {[%emt 0:00:01]} Qg1+ $11 {[%emt 0:00:17]} 38. Kh3 {[%emt 0:00:17]} Qf1+ {[%emt 0:00:34]} 39. Kg3 {[%emt 0:00:19]} 1/2-1/2

[Event "OBEM 2019"]
[Site "Bremen"]
[Date "2019.04.19"]
[Round "8.4"]
[White "Buescher, Andre"]
[Black "Kruger, Jan"]
[Result "1/2-1/2"]
[ECO "B50"]
[WhiteElo "2019"]
[BlackElo "1714"]
[Annotator "NA RC"]
[PlyCount "61"]
[EventDate "2019.04.13"]
[EventType "swiss"]
[EventCountry "GER"]
[SourceTitle "playchess.com"]
[Source "ChessBase"]
[SourceQuality "1"]
[TimeControl "40/5400+30:1800+30"]

{[%evp 14,61,-12,32767,32767,32767,-11,32767,32767,32767,32767,32767,-16,32767,-51,-61,-33,-54,-65,-49,-66,32767,32767,32767,32767,-151,0,-177,-230,-200,32767,32767,32767,32767,-513,-529,-469,-385,32767,-64,32767,0,0,32767,32767,32767,32767,32767,0,0]} 1. e4 {[%emt 0:00:00]} c5 {[%emt 0:00:00]} 2. Nf3 {[%emt 0:00:25]} d6 {[%emt 0:00:00]} 3. c3 {[%emt 0:01:31]} Nf6 {[%emt 0:01:04]} 4. Be2 {[%emt 0:03:09]} Nc6 {[%emt 0:01:15]} 5. d3 {[%emt 0:01:47]} e5 {[%emt 0:01:56]} (5... g6 6. a4 Bg7 7. Na3 O-O 8. h3 d5 9. Qc2 e5 10. Bg5 Be6 11. O-O h6 12. Bd2 Rc8 13. Rfc1 Qd7 {½-½ (36) Savchenko,B (2612)-Smirnov,A (2455) Minsk 2015}) 6. O-O {[%emt 0:01:10] B50: Sicilian: 2...d6, Miscellaneous} Be7 {[%emt 0:00:21]} 7. Nbd2 {[%emt 0:02:39]} Rb8 {[%emt 0:05:17]} 8. a4 {[%emt 0:01:29]} a6 {[%emt 0:01:08]} 9. Re1 {[%emt 0:00:53]} O-O {[%emt 0:05:43]} 10. Nf1 {[%emt 0:13:19]} d5 $146 {[%emt 0:07:15]} ({Predecessor:} 10... Re8 11. Ng3 Bf8 12. h3 d5 13. Bg5 {½-½ (73) Sluka,R (2349)-Ruzicka,P (2267) Czechia 2008}) 11. exd5 {[%emt 0:01:26]} Nxd5 {[%emt 0:01:03]} 12. Ng3 {[%emt 0:02:13]} Kh8 {[%emt 0:06:20]} 13. Bf1 {[%emt 0:01:53]} f6 {[%emt 0:06:59]} 14. d4 {[%emt 0:09:06]} cxd4 {[%emt 0:05:52]} 15. cxd4 {[%emt 0:01:37]} Bb4 {[%emt 0:00:41]} 16. Re4 {[%emt 0:04:48]} f5 {[%emt 0:13:33]} 17. Rh4 {[%emt 0:08:29]} Be7 {[%emt 0:03:50]} 18. Rh5 {[%emt 0:07:16]} f4 {[%emt 0:05:50]} 19. Bd3 {[%emt 0:07:03] [#]} ({White should play} 19. Qc2 $15 Nf6 20. dxe5 Nxh5 21. Nxh5) 19... h6 {[%emt 0:11:32]} ({Weaker is} 19... fxg3 20. Rxh7+ Kg8 21. Nxe5 $11) ({Wrong is} 19... Nxd4 $2 20. Nxe5 Nf6 21. Bxf4 $18) (19... Nf6 $1 $17 {[%cal Rf6h5]} 20. Nxe5 fxg3 21. Ng6+ Kg8 22. Bc4+ Rf7) 20. Nxe5 $2 {[%emt 0:03:29]} (20. Nf5 $11 {and White has nothing to worry.} Bxf5 21. Rxf5) 20... Nxe5 {[%emt 0:01:18]} ({And not} 20... fxg3 {[#]} 21. Bxh6 $1 {[%mdl 512]} gxf2+ 22. Kf1 $11) 21. Rxe5 {[%emt 0:03:54]} fxg3 {[%emt 0:05:21]} 22. Bxh6 {[%emt 0:03:29]} gxf2+ {[%emt 0:01:34]} 23. Kf1 {[%emt 0:00:29]} gxh6 {[%emt 0:06:49]} 24. Qh5 {[%emt 0:01:17]} Bg5 {[%emt 0:01:53]} 25. Qg6 {[%emt 0:06:11]} Nf6 {[%emt 0:00:23]} 26. Rxg5 {[%emt 0:01:37] Remove Defender} hxg5 {[%emt 0:00:42]} 27. Qh6+ $11 {[%emt 0:01:08]} Kg8 {[%emt 0:00:13]} 28. Qg6+ {[%emt 0:00:56]} Kh8 {[%emt 0:00:06]} 29. Qh6+ {[%emt 0:00:02]} Kg8 {[%emt 0:00:04]} 30. Qg6+ {[%emt 0:03:58]} Kh8 {[%emt 0:00:12]} 31. Qh6+ {[%emt 0:00:03]} 1/2-1/2

[Event "OBEM 2019"]
[Site "Bremen"]
[Date "2019.04.20"]
[Round "9.1"]
[White "Issing, Peter"]
[Black "Margraf, Daniel"]
[Result "1-0"]
[ECO "E35"]
[WhiteElo "2156"]
[BlackElo "2238"]
[Annotator "NA"]
[PlyCount "69"]
[EventDate "2019.04.13"]
[EventType "swiss"]
[EventCountry "GER"]
[SourceTitle "playchess.com"]
[Source "ChessBase"]
[SourceQuality "1"]
[TimeControl "40/5400+30:1800+30"]

1. d4 {[%emt 0:00:00]} Nf6 {[%emt 0:00:00]} 2. c4 {[%emt 0:00:00]} e6 {[%emt 0:00:39]} 3. Nc3 {[%emt 0:00:00]} Bb4 {[%emt 0:00:36]} 4. Qc2 {[%emt 0:00:09]} d5 {[%emt 0:03:20]} 5. cxd5 {[%emt 0:13:20]} exd5 {[%emt 0:05:19]} 6. Bg5 {[%emt 0:01:51]} c6 {[%emt 0:00:41]} 7. e3 {[%emt 0:01:35]} h6 {[%emt 0:00:25]} 8. Bh4 {[%emt 0:00:34]} g5 {[%emt 0:08:40]} 9. Bg3 {[%emt 0:00:15]} Ne4 {[%emt 0:00:47]} 10. Be5 {[%emt 0:00:42]} O-O {[%emt 0:03:57]} 11. Bd3 {[%emt 0:04:30]} Nd7 {[%emt 0:09:17]} 12. Bg3 {[%emt 0:06:06]} Qe7 {[%emt 0:06:45]} 13. Nge2 {[%emt 0:02:20]} f5 {[%emt 0:03:02]} 14. O-O-O {[%emt 0:03:46]} Nxc3 {[%emt 0:04:23]} 15. bxc3 {[%emt 0:01:03]} Ba3+ {[%emt 0:05:48]} 16. Kb1 {[%emt 0:00:09]} Nb6 {[%emt 0:01:43]} 17. h4 {[%emt 0:01:29]} g4 {[%emt 0:08:09]} 18. Nf4 {[%emt 0:00:49]} Nc4 {[%emt 0:07:16]} 19. Bxc4 {[%emt 0:06:26]} dxc4 {[%emt 0:00:07]} 20. Ka1 {[%emt 0:00:51]} Be6 {[%emt 0:03:18]} 21. Ng6 {[%emt 0:03:40]} Qd7 {[%emt 0:03:18]} 22. h5 {[%emt 0:05:23]} Bd5 {[%emt 0:01:14]} 23. Bf4 {[%emt 0:06:25]} Kh7 {[%emt 0:01:16]} 24. Rhg1 {[%emt 0:04:33]} Qe8 {[%emt 0:04:43]} 25. Rdf1 {[%emt 0:03:46]} Rf6 {[%emt 0:00:50]} 26. f3 {[%emt 0:00:44]} b5 {[%emt 0:03:31]} 27. Be5 {[%emt 0:02:59]} Rf7 {[%emt 0:08:06]} 28. e4 {[%emt 0:03:48]} fxe4 {[%emt 0:01:26]} 29. fxe4 {[%emt 0:01:27]} Be6 {[%emt 0:01:43]} 30. d5 {[%emt 0:11:12]} Bd7 {[%emt 0:00:16]} 31. Qe2 {[%emt 0:01:24]} cxd5 {[%emt 0:01:46]} 32. Rxf7+ {[%emt 0:00:24]} Qxf7 {[%emt 0:00:05]} 33. Rf1 {[%emt 0:01:02]} Qg8 {[%emt 0:02:27]} 34. exd5 {[%emt 0:01:01]} Re8 {[%emt 0:01:27]} 35. Qc2 {[%emt 0:00:36]} 1-0

[Event "OBEM 2019"]
[Site "Bremen"]
[Date "2019.04.20"]
[Round "9.2"]
[White "Elmali, Timur"]
[Black "Stieglitz, Dirk"]
[Result "1/2-1/2"]
[ECO "D02"]
[WhiteElo "2121"]
[BlackElo "2076"]
[Annotator "NA"]
[PlyCount "43"]
[EventDate "2019.04.13"]
[EventType "swiss"]
[EventCountry "GER"]
[SourceTitle "playchess.com"]
[Source "ChessBase"]
[SourceQuality "1"]
[TimeControl "40/5400+30:1800+30"]

1. d4 {[%emt 0:00:00]} d5 {[%emt 0:00:00]} 2. Nf3 {[%emt 0:00:00]} Nf6 {[%emt 0:00:04]} 3. Bf4 {[%emt 0:00:31]} c6 {[%emt 0:00:46]} 4. e3 {[%emt 0:00:33]} Bf5 {[%emt 0:00:27]} 5. Bd3 {[%emt 0:03:10]} e6 {[%emt 0:00:23]} 6. Bxf5 {[%emt 0:00:44]} exf5 {[%emt 0:00:03]} 7. O-O {[%emt 0:01:31]} Be7 {[%emt 0:05:34]} 8. Nbd2 {[%emt 0:05:49]} O-O {[%emt 0:01:22]} 9. h3 {[%emt 0:02:32]} Nbd7 {[%emt 0:04:30]} 10. c4 {[%emt 0:01:19]} dxc4 {[%emt 0:06:01]} 11. Nxc4 {[%emt 0:00:47]} Ne4 {[%emt 0:03:24]} 12. Qb3 {[%emt 0:02:24]} Nb6 {[%emt 1:13:26]} 13. Na5 {[%emt 0:05:20]} Qc8 {[%emt 0:00:00]} 14. Rfd1 {[%emt 0:04:15]} Bd6 {[%emt 0:00:00]} 15. Ne5 {[%emt 0:06:25]} Bxe5 {[%emt 0:00:00]} 16. Bxe5 {[%emt 0:01:12]} Qd7 {[%emt 0:00:00]} 17. Rac1 {[%emt 0:09:27]} Rfe8 {[%emt 0:00:00]} 18. f3 {[%emt 0:05:05]} Ng5 {[%emt 0:00:00]} 19. Re1 {[%emt 0:01:05]} Kh8 {[%emt 0:00:00]} 20. a4 {[%emt 0:04:22]} f6 {[%emt 0:00:00]} 21. Bg3 {[%emt 0:00:31]} Ne6 {[%emt 0:00:00]} 22. Nc4 {[%emt 0:11:13]} 1/2-1/2

[Event "OBEM 2019"]
[Site "Bremen"]
[Date "2019.04.20"]
[Round "9.3"]
[White "Hundack, Rolf"]
[Black "Norbach, Alexander"]
[Result "1/2-1/2"]
[ECO "D48"]
[WhiteElo "2140"]
[BlackElo "1972"]
[Annotator "NA"]
[PlyCount "63"]
[EventDate "2019.04.13"]
[EventType "swiss"]
[EventCountry "GER"]
[SourceTitle "playchess.com"]
[Source "ChessBase"]
[SourceQuality "1"]
[TimeControl "40/5400+30:1800+30"]

1. c4 {[%emt 0:09:56]} c6 {[%emt 0:00:00]} 2. d4 {[%emt 0:04:30]} d5 {[%emt 0:00:09]} 3. e3 {[%emt 0:00:35]} Nf6 {[%emt 0:00:18]} 4. Nf3 {[%emt 0:00:16]} e6 {[%emt 0:00:21]} 5. Nc3 {[%emt 0:00:35]} Nbd7 {[%emt 1:31:42]} 6. Bd3 {[%emt 1:17:08]} dxc4 {[%emt 0:00:30]} 7. Bxc4 {[%emt 0:00:30]} b5 {[%emt 0:00:30]} 8. Bd3 {[%emt 0:00:30]} a6 {[%emt 0:00:30]} 9. O-O {[%emt 0:00:30]} c5 {[%emt 0:00:30]} 10. Qe2 {[%emt 0:00:30]} Bb7 {[%emt 0:00:30]} 11. Rd1 {[%emt 0:00:30]} Qb6 {[%emt 0:00:30]} 12. Bc2 {[%emt 0:00:30]} Be7 {[%emt 0:00:30]} 13. e4 {[%emt 0:00:00]} O-O {[%emt 0:00:00]} 14. e5 {[%emt 0:00:00]} Nd5 {[%emt 0:00:00]} 15. Ne4 {[%emt 0:00:00]} h6 {[%emt 0:00:00]} 16. Ng3 {[%emt 0:00:00]} Rac8 {[%emt 0:00:00]} 17. Nh5 {[%emt 0:00:00]} f5 {[%emt 0:00:00]} 18. exf6 {[%emt 0:00:00]} N7xf6 {[%emt 0:00:00]} 19. Nxg7 {[%emt 0:00:00]} Nb4 {[%emt 0:00:00]} 20. Ne5 {[%emt 0:00:00]} Nxc2 {[%emt 0:00:00]} 21. Qxc2 {[%emt 0:00:00]} Be4 {[%emt 0:00:00]} 22. Qd2 {[%emt 0:00:00]} Kxg7 {[%emt 0:00:00]} 23. Qxh6+ {[%emt 0:00:00]} Kg8 {[%emt 0:00:00]} 24. Re1 {[%emt 0:00:20]} Qb7 {[%emt 0:00:00]} 25. Re3 {[%emt 0:01:11]} Nh5 {[%emt 0:01:53]} 26. Qxh5 {[%emt 0:00:57]} Bf6 {[%emt 0:02:21]} 27. Qg4+ {[%emt 0:00:53]} Bg7 {[%emt 0:00:16]} 28. Rxe4 {[%emt 0:01:30]} Rf5 {[%emt 0:00:35]} 29. Bh6 {[%emt 0:01:06]} Rc7 {[%emt 0:00:25]} 30. Rae1 {[%emt 0:00:54]} cxd4 {[%emt 0:00:31]} 31. Nf3 {[%emt 0:01:08]} Kf8 {[%emt 0:01:31]} 32. Rxe6 {[%emt 0:00:26] Ke8 [%clk 0:00:00]} 1/2-1/2

[Event "OBEM 2019"]
[Site "Bremen"]
[Date "2019.04.20"]
[Round "9.4"]
[White "Stern, Philipp"]
[Black "Pienski, Olaf"]
[Result "1-0"]
[ECO "B58"]
[WhiteElo "1794"]
[BlackElo "2081"]
[Annotator "NA"]
[PlyCount "75"]
[EventDate "2019.04.13"]
[EventType "swiss"]
[EventCountry "GER"]
[SourceTitle "playchess.com"]
[Source "ChessBase"]
[SourceQuality "1"]
[TimeControl "40/5400+30:1800+30"]

1. e4 {[%emt 0:10:14]} c5 {[%emt 0:00:00]} 2. Nf3 {[%emt 0:00:07]} d6 {[%emt 0:00:08]} 3. d4 {[%emt 0:00:23]} cxd4 {[%emt 0:00:20]} 4. Nxd4 {[%emt 0:00:12]} Nf6 {[%emt 0:00:25]} 5. Nc3 {[%emt 0:00:07]} Nc6 {[%emt 0:00:37]} 6. Be2 {[%emt 0:01:55]} e5 {[%emt 0:01:26]} 7. Nf3 {[%emt 0:02:06]} h6 {[%emt 0:01:20]} 8. h3 {[%emt 0:00:57]} Be7 {[%emt 0:01:47]} 9. O-O {[%emt 0:01:44]} O-O {[%emt 0:00:21]} 10. Bc4 {[%emt 0:06:38]} Qc7 {[%emt 0:13:07]} 11. Nd5 {[%emt 0:05:48]} Nxd5 {[%emt 0:02:00]} 12. Bxd5 {[%emt 0:00:25]} Nb4 {[%emt 0:04:19]} 13. Bb3 {[%emt 0:05:05]} a5 {[%emt 0:06:40]} 14. c3 {[%emt 0:03:56]} Na6 {[%emt 0:02:05]} 15. Be3 {[%emt 0:03:12]} Nc5 {[%emt 0:05:13]} 16. Bd5 {[%emt 0:04:35]} a4 {[%emt 0:01:59]} 17. Qc2 {[%emt 0:15:15]} Kh8 {[%emt 0:04:25]} 18. b4 {[%emt 0:03:19]} axb3 {[%emt 0:00:52]} 19. axb3 {[%emt 0:00:10]} Rxa1 {[%emt 0:01:32]} 20. Rxa1 {[%emt 0:00:07]} f5 {[%emt 0:01:26]} 21. Bxc5 {[%emt 0:04:26]} Qxc5 {[%emt 0:01:50]} 22. b4 {[%emt 0:00:32]} Qc7 {[%emt 0:02:32]} 23. Ra8 {[%emt 0:05:00]} fxe4 {[%emt 0:02:52]} 24. Qxe4 {[%emt 0:10:51]} Qxc3 {[%emt 0:13:52]} 25. Bxb7 {[%emt 0:01:05]} Qc1+ {[%emt 0:01:28]} 26. Kh2 {[%emt 0:00:55]} Bxb7 {[%emt 0:00:51]} 27. Rxf8+ {[%emt 0:01:25]} Bxf8 {[%emt 0:00:11]} 28. Qxb7 {[%emt 0:00:07]} Qf4+ {[%emt 0:04:00]} 29. g3 {[%emt 0:00:48]} Qf5 {[%emt 0:01:19]} 30. Kg2 {[%emt 0:00:31]} g5 {[%emt 0:04:46]} 31. Qd5 {[%emt 0:01:39]} Qb1 {[%emt 0:07:27]} 32. b5 {[%emt 0:01:48]} e4 {[%emt 0:01:35]} 33. Nd4 {[%emt 0:01:30]} Bg7 {[%emt 0:04:50]} 34. Nf5 {[%emt 0:00:45]} Qd3 {[%emt 0:01:04]} 35. Qxd3 {[%emt 0:02:33]} exd3 {[%emt 0:00:11]} 36. Kf3 {[%emt 0:00:17]} Bf8 {[%emt 0:01:19]} 37. b6 {[%emt 0:00:23]} d2 {[%emt 0:01:17]} 38. Ke2 {[%emt 0:00:08]} 1-0